Cogmind - Beta 13 @@@ ROGUE MODE // 2024.07.14 @ 22:55:16 Player: raiguard Result: Self-destructed Performance ------------- Evolutions (1) 500 Regions Visited (3) 600 Robots Destroyed (35) 175 Value Destroyed (794) 794 Prototype IDs (2) 40 Alien Tech Used (0) 0 Bonus (0) 0 TOTAL SCORE: 2109 Bonus ------- None Cogmind --------- Core Integrity 264/400 Matter 300/300 Energy 160/160 System Corruption 0% Temperature Cool (0) Movement Walking (190) Ox1 Location -9/Materials Parts ------- > --- POWER (1) -------- Light Nuclear Core > --- PROPULSION (3) --- Aluminum Leg Aluminum Leg Aluminum Leg > --- UTILITY (3) ------ Large Storage Unit Targeting Computer Improved Targeting Computer > --- WEAPON (2) ------- Heavy Particle Cannon Heavy Particle Cannon > --- INVENTORY (15) --- Ion Engine Ion Engine Light Ion Engine Light Nuclear Core Compact Wheel Large Storage Unit Large Storage Unit Sensor Array Signal Interpreter Shield Generator Light Assault Rifle Light Assault Rifle Light Cannon Datajack Hammer Peak State ------------ > --- POWER ------------ Light Nuclear Core > --- PROPULSION ------- Aluminum Leg Aluminum Leg Aluminum Leg > --- UTILITY ---------- Large Storage Unit Targeting Computer Improved Targeting Computer > --- WEAPON ----------- Heavy Particle Cannon Heavy Particle Cannon > --- INVENTORY -------- Ion Engine Ion Engine Light Ion Engine Light Nuclear Core Compact Wheel Large Storage Unit Large Storage Unit Sensor Array Signal Interpreter Shield Generator Light Assault Rifle Light Assault Rifle Light Cannon Datajack Hammer [Rating: 17] Favorites ----------- Power Ion Engine Engine Ion Engine Power Core Light Nuclear Core Propulsion Light Treads Treads Light Treads Leg Aluminum Leg Wheel Compact Wheel Utility Large Storage Unit Device Sensor Array Storage Large Storage Unit Processor Improved Targeting Computer Weapon Light Assault Rifle Energy Cannon Heavy Particle Cannon Ballistic Gun Light Assault Rifle Build | -11 -10 -10 -9 ------- Run | Yrd Mat Min Mat Slots Evolved 2 | . . . 2 Power . | . . . . Propulsion 1 | . . . 1 Utility 1 | . . . 1 Weapon . | . . . . Parts Attached 37 | 6 11 3 17 Power 5 | 1 1 . 3 Engine 3 | 1 1 . 1 Core 2 | . . . 2 Reactor . | . . . . Propulsion 11 | 2 3 . 6 Treads 5 | 2 3 . . Leg 4 | . . . 4 Wheel 2 | . . . 2 Hover . | . . . . Flight . | . . . . Utility 11 | 1 4 3 3 Device 5 | . 2 3 . Storage 4 | 1 2 . 1 Processor 2 | . . . 2 Hackware . | . . . . Protection . | . . . . Artifact . | . . . . Weapon 10 | 2 3 . 5 Energy Gun . | . . . . Energy Cannon 2 | . . . 2 Ballistic Gun 8 | 2 3 . 3 Ballistic Cannon . | . . . . Launcher . | . . . . Special Weapon . | . . . . Impact Weapon . | . . . . Slashing Weapon . | . . . . Piercing Weapon . | . . . . Special Melee Weapon . | . . . . Unidentified Prototypes . | . . . . Parts Lost 7 | . . 2 5 Power 1 | . . . 1 Propulsion 2 | . . . 2 Utility 1 | . . . 1 Weapon 3 | . . 2 1 Highest Loss Streak 4 | . . 2 4 To Critical Strikes . | . . . . Average Slot Usage (%) 95 | . 98 97 90 Engine 10 | . 14 14 4 Core 2 | . . . 6 Treads 20 | . 27 28 9 Leg 6 | . . . 16 Device 5 | . 6 14 2 Storage 16 | . 20 14 11 Processor 6 | . . . 17 Energy Cannon 3 | . . . 10 Ballistic Gun 21 | . 27 26 10 Naked Turns . | . . . . Heaviest Build 37 | 13 33 28 37 Greatest Support 40 | 40 40 40 40 Greatest Overweight (x) 9 | . 9 . 2 Average Overweight (x) . | . . . . Largest Inventory Capacity 15 | 8 15 15 15 Average Capacity 13 | 7 14 15 15 Most Carried 15 | 6 15 15 15 Average Carried 12 | 5 13 15 14 Final Capacity 15 | 8 15 15 15 Final Carried 15 | 6 15 15 15 Class Distribution -------------------- 82% | Mutant 17% | Scavenger-Mutant Dominant Class ---------------- Mutant | -10/Materials Mutant | -10/Mines Scavenger-Mutant | -9/Materials Resources | -11 -10 -10 -9 ----------- Run | Yrd Mat Min Mat Matter Collected 902 | 199 350 60 293 Remotely . | . . . . Salvage Created 1054 | . 350 . 704 Parts 80 | . 35 . 45 Haulers Intercepted . | . . . . Recyclers Shooed . | . . . . Parts Field Recycled . | . . . . Retrieved Matter . | . . . . Parts Self-Destructed . | . . . . Prevented . | . . . . Kills | -11 -10 -10 -9 ------- Run | Yrd Mat Min Mat Combat Hostiles Destroyed 29 | . 12 . 17 Guns 23 | . 12 . 11 Cannons 6 | . . . 6 Classes Destroyed 6 | . 3 . 3 Recycler 1 | . . . 1 Mechanic 1 | . . . 1 Watcher 4 | . 2 . 2 Swarmer 14 | . 6 . 8 Grunt 13 | . 6 . 7 Sentry 2 | . . . 2 Best Kill Streak 6 | . 3 . 6 Combat Bots Only 5 | . 3 . 5 Max Kills in Single Turn 2 | . 1 . 2 Gunslinging . | . . . . Exploded . | . . . . Melee . | . . . . Uniques/NPCs Destroyed . | . . . . Combat | -11 -10 -10 -9 -------- Run | Yrd Mat Min Mat Hostile Shots Fired 186 | . 54 12 120 Missed 54 | . 16 . 38 Damage Taken 1650 | . 414 426 810 Core 251 | . 22 93 136 Absorbed by Shields 108 | . . 61 47 Regen/Repaired (Parts) 279 | . 279 . . Core Remaining (%) 77 | 100 . 54 . Volleys Fired 106 | . 46 . 60 Largest 2 | . 2 . 2 Hottest 150 | . 40 . 150 Shots Fired 211 | . 92 . 119 Gun 183 | . 92 . 91 Cannon 28 | . . . 28 Launcher . | . . . . Special . | . . . . Kinetic 183 | . 92 . 91 Thermal 28 | . . . 28 Explosive . | . . . . Electromagnetic . | . . . . Robot Hit Streak 21 | . 6 . 21 Robot Miss Streak 6 | . 6 . 5 Penetration Max . | . . . . Secondary Targets 1 | . 1 . . Max Gunslinging Chain 1 | . 1 . . Shots Hit Robots 131 | . 56 . 75 Core Hits 63 | . 25 . 38 Critical Kills . | . . . . Critical Parts Destroyed 2 | . 1 . 1 Critical Strikes 2 | . 1 . 1 Destroy 2 | . 1 . 1 Melee Attacks . | . . . . Impact . | . . . . Slashing . | . . . . Piercing . | . . . . Sneak Attacks . | . . . . Combat Hostiles . | . . . . Follow-up Attacks . | . . . . Damage Inflicted 1444 | . 559 . 885 Guns 1093 | . 559 . 534 Cannons 350 | . . . 350 Explosions . | . . . . Melee . | . . . . Ramming 1 | . . . 1 Kinetic 1093 | . 559 . 534 Thermal 350 | . . . 350 Explosive . | . . . . Electromagnetic . | . . . . Impact . | . . . . Slashing . | . . . . Piercing . | . . . . Highest Corruption 1 | . 1 1 . Average Corruption 1 | . 1 1 . Corruption Purged . | . . . . Corruption Blocked . | . . . . Effects 6 | . 4 2 . Matter Fused 2 | . 1 1 . Heat Flow Errors 1 | . 1 . . Energy Discharges 1 | . 1 . . Data Loss (minor) 2 | . 1 1 . Overload Shots . | . . . . Overflow Damage 5 | . . . 5 Projectiles 5 | . . . 5 Explosions . | . . . . Melee . | . . . . Knockbacks . | . . . . Impact . | . . . . Kinetic . | . . . . Secondary . | . . . . Self-Inflicted Damage . | . . . . Shots . | . . . . Rammed 1 | . . . 1 Targets Rammed 1 | . . . 1 Kicked . | . . . . Crushed . | . . . . Highest Temperature 357 | . 249 . 357 Average Temperature 117 | . 57 . 133 Received Heat Transfer 412 | . 162 . 250 Effects 5 | . . . 5 Interference 3 | . . . 3 Matter Decay 1 | . . . 1 Damage (minor) 1 | . . . 1 Siege Activations . | . . . . Robots Corrupted . | . . . . Combat Hostiles . | . . . . Parts Fried . | . . . . Impact Corruptions . | . . . . Robots Melted . | . . . . Combat Hostiles . | . . . . Parts Melted 1 | . . . 1 Heat Transferred 518 | . . . 518 Parts Sabotaged . | . . . . Parts Stolen . | . . . . Parts Stripped . | . . . . Power Chain Reactions . | . . . . Alert | -11 -10 -10 -9 ------- Run | Yrd Mat Min Mat Peak Influence 232 | . 225 . 232 Initial . | . . . . Average 66 | . 74 . 103 Maximum Alert Level 1 | . 1 . 1 Low Security (%) 94 | 100 91 100 96 Level 1 5 | . 8 . 3 Level 2 . | . . . . Level 3 . | . . . . Level 4 . | . . . . Level 5 . | . . . . High Security . | . . . . Max Security . | . . . . Squads Dispatched 2 | . 1 . 1 Investigation 1 | . 1 . . Extermination . | . . . . Reinforcement 1 | . . . 1 Assault . | . . . . Garrison . | . . . . Intercept . | . . . . Searches Triggered . | . . . . Construction Impeded . | . . . . Haulers Reinforced . | . . . . Active Scanning Responses . | . . . . Cargo Convoy Interrupts . | . . . . Stealth | -11 -10 -10 -9 --------- Run | Yrd Mat Min Mat Distress Signals 4 | . . . 4 Communications Jammed . | . . . . Distress Signals . | . . . . Times Spotted 55 | . 27 1 27 Peak Tracking Total 7 | . 3 1 7 Tactical Retreats 2 | . 2 . . Traps | -11 -10 -10 -9 ------- Run | Yrd Mat Min Mat Traps Triggered 2 | . 2 . . Indirectly . | . . . . Trap Hack Attempts . | . . . . Triggered . | . . . . Disarmed . | . . . . Reprogrammed . | . . . . Reused . | . . . . Traps Extracted . | . . . . Installed . | . . . . Triggered . | . . . . Machines | -11 -10 -10 -9 ---------- Run | Yrd Mat Min Mat Machines Disabled . | . . . . Max in Single Turn . | . . . . Machines Repaired . | . . . . Machines Dismantled . | . . . . Machines Sabotaged . | . . . . Overloaded Fab Kills . | . . . . Hacking | -11 -10 -10 -9 --------- Run | Yrd Mat Min Mat Machines Accessed 9 | . 7 . 2 Terminals 8 | . 6 . 2 Fabricators . | . . . . Repair Stations 1 | . 1 . . Recycling Units . | . . . . Scanalyzers . | . . . . Garrison Access . | . . . . Total Hacks 29 | . 23 . 6 Successful 17 | . 13 . 4 Failed 12 | . 10 . 2 Catastrophic . | . . . . Database Lockouts . | . . . . Manual . | . . . . Terminals 22 | . 16 . 6 Fabricators . | . . . . Repair Stations 7 | . 7 . . Recycling Units . | . . . . Scanalyzers . | . . . . Garrison Access . | . . . . Terminal Hacks 11 | . 7 . 4 Record 1 | . . . 1 Prototype ID Bank 1 | . 1 . . Emergency Access Points 1 | . 1 . . Alert Level 4 | . 2 . 2 Unreport Threat 1 | . 1 . . Locate Traps 1 | . 1 . . Hauler Manifests 2 | . 1 . 1 Fabricator Hacks . | . . . . Repair Station Hacks 6 | . 6 . . Scan Component 3 | . 3 . . Repair 3 | . 3 . . Recycling Unit Hacks . | . . . . Scanalyzer . | . . . . Garrison Access Hacks . | . . . . Unauthorized Hacks . | . . . . Terminals . | . . . . Fabricators . | . . . . Repair Stations . | . . . . Recycling Units . | . . . . Scanalyzers . | . . . . Garrison Access . | . . . . Data Cores Recovered . | . . . . Used . | . . . . Hacking Detections 8 | . 6 . 2 Full Trace Events 1 | . 1 . . Feedback Events . | . . . . Feedback Blocked . | . . . . Robot Schematics Acquired . | . . . . Robots Built . | . . . . Authchips . | . . . . Time . | . . . . Total Robot Build Rating . | . . . . Part Schematics Acquired . | . . . . Parts Built . | . . . . Authchips . | . . . . Time . | . . . . Total Part Build Rating . | . . . . Parts Repaired 3 | . 3 . . Time 78 | . 78 . . Parts Recycled . | . . . . Recycled Matter . | . . . . Retrieved Matter . | . . . . Retrieved Components . | . . . . Parts Scanalyzed . | . . . . Part Schematics Acquired . | . . . . Parts Damaged . | . . . . Bothacking | -11 -10 -10 -9 ------------ Run | Yrd Mat Min Mat Used RIF Installer . | . . . . Robots Hacked . | . . . . Non-combat . | . . . . Combat . | . . . . Robot Hacks Applied . | . . . . Relay Couplers Released . | . . . . Fabnet Peak Effective % . | . . . . Robots Rewired . | . . . . Allies Hacked . | . . . . Hacks Repelled . | . . . . Allies | -11 -10 -10 -9 -------- Run | Yrd Mat Min Mat Total Allies . | . . . . Largest Group . | . . . . Highest-Rated Group . | . . . . Highest-Rated Ally . | . . . . Total Orders . | . . . . Ally Attacks . | . . . . Total Damage . | . . . . Kills . | . . . . Allies Corrupted . | . . . . Allies Melted . | . . . . Intel | -11 -10 -10 -9 ------- Run | Yrd Mat Min Mat Robot Analysis Total . | . . . . Derelict Logs Recovered 1 | . . 1 . Drone Launches . | . . . . Drone Recoveries . | . . . . Exploration | -11 -10 -10 -9 ------------- Run | Yrd Mat Min Mat Turns Passed 3236 | 486 1436 278 1036 Spaces Moved 1460 | 131 711 145 473 Core 7 | 5 2 . . Treads 1192 | 126 709 145 212 Legs 253 | . . . 253 Wheels 8 | . . . 8 Hover . | . . . . Flight . | . . . . Fastest Speed 50 | 50 160 160 100 Average Speed 163 | 155 161 160 171 Slowest Speed 500 | 160 500 160 260 Overloaded Moves . | . . . . Propulsion Burnouts . | . . . . Robots Hopped . | . . . . Cave-ins Triggered . | . . . . Exploration Rate (%) 40 | 13 85 40 25 Regions Visited 3 Branch Regions 1 Pre-discovered Areas . | . . . . Known Exits Taken 1 | . . 1 . Unknown Exits Taken 2 | 1 1 . . Scrap Searched . | . . . . Spaces Dug . | . . . . Terrain Destroyed 12 | . . . 12 Melee . | . . . . Projectile 12 | . . . 12 AOE . | . . . . Terrain Rammed . | . . . . Walls Destroyed . | . . . . Machines Disabled . | . . . . Actions | -11 -10 -10 -9 --------- Run | Yrd Mat Min Mat Total 2120 | 410 924 190 596 Wait 470 | 268 125 41 36 Move 1457 | 130 710 144 473 Hop . | . . . . Pick Up 27 | 6 17 . 4 Fast Attach 15 | 6 6 . 3 Attach 10 | . 1 . 9 Detach 3 | . 1 . 2 Swap 12 | . 4 3 5 Drop 17 | . 14 . 3 Fire 106 | . 46 . 60 Melee . | . . . . Ram . | . . . . Kick . | . . . . Crush 1 | . . . 1 Escape Stasis . | . . . . Rewire 2 | . . 2 . Trap . | . . . . Miscellaneous . | . . . . Route ------- -11/Scrapyard -10/Materials (discovered 4 exits: *Mat x2 / [*Min x2]) -10/Mines -9/Materials (discovered 1 exit: [*Mat]) History --------- Turn | Location | Event 10 | -11/Scrapyard | Discovered new exit (range 15) 487 | -11/Scrapyard | Entered Materials 488 | -10/Materials | Build established: Mutant 846 | -10/Materials | Discovered new exit (range 10) 1215 | -10/Materials | Discovered new exit (range 16) 1486 | -10/Materials | Repaired Lgt. Treads 1522 | -10/Materials | Repaired Lgt. Treads 1549 | -10/Materials | Repaired Assault Rifle 1622 | -10/Materials | Discovered new exit (range 16) 1681 | -10/Materials | Discovered new exit (range 14) 1923 | -10/Materials | Entered Mines 1924 | -10/Mines | Assembled infested the area 1930 | -10/Mines | Met a Derelict bent on vengeance 1968 | -10/Mines | Met 8R-AWN 2101 | -10/Mines | Identified exit to Materials 2201 | -10/Mines | Entered Materials 2201 | -9/Materials | Evolved 2 slots: Propulsion x1, Utility x1 2490 | -9/Materials | Discovered new exit (range 15) 2721 | -9/Materials | Lost 4 parts (1p2n1w) 2969 | -9/Materials | Build established: Scavenger-Mutant 3237 | -9/Materials | Self-destructed Last Messages --------------- 03045_ K-01 Serf cleans the Fusion Modulator. You have activated your volley range indicator ('v' or the button under the VOLLEY window), useful for visualizing the range of your currently active weapons. That window and button are only visible while in targeting mode. See the manual for a detailed description of its advanced features. 03139_ O-16 Technician: "IFF HANDSHAKE FAILED. SECURING TERMINAL." 03148_ ALERT: Hostiles spotted, dispatching reinforcements to Terminal M006. 03207_ G-34 Mercenary destroyed. 03213_ Overheating: System interference. 03213_ Targeting Computer temporarily disabled. 03213_ Imp. Targeting Computer temporarily disabled. 03216_ Dropped Aluminum Leg. 03221_ Acquired 10 matter. 03230_ R-06 Scavenger collects Aluminum Leg. Map ----- +----------------------------------------------------+ | ????????????????#!! ##### ##??######???????? | | ????????????????#!! #???# #??##!! !##??????? | | ????????????????##### #???# #??#! !#??????? | | ????????????????????# #???# #??# #??????? | | ????????????????????# #???# #### ########## | | ????????????????????# #???# + | | ?? ????? ?????????# #??## # | | ?? "???" ?????????# #??# # | | ??^ "???" ?????????# #??# # | | ?# ""?"" #????????# #??# + """"" " | | ?# ?? #?######## #??# # """"" T | | ?# ?? #?# """ # #??# # """"" " | | ## """"" #?# """ # #??############## ? | | """"" #?# """ # #???????????????########?# | | """"" #?# +%% #????????????????????????? | | #?# #% #????????????????????????? | | #?# # #????????????????????????? | | """"" #?######## ##???????????????????????? | | """"" ######### #?????????????######????? | | """"" ###########+### #????? | | T #????? | | ^ #????? | | ############## r% ##### """ """ #????? | | ## #??????????####;;#;##### """"""""" #????? | | ## #??????????# ! ; # """"" " #????? | | # #??????????# @ ### ^ #????? | | + #??????????# #?# #????? | | # #??????????# #?# ###??? | | ## #??????????# ### #??? | | ?# #??????????# + #??? | | ?######??????????# ### #######+####?? | | ?????????????????# #?# #???# #?? | | ?????????????????###########?# #???# #?? | | ?????????????????????????????# ##### #?? | | ????????????????????????###### + #?? | | ????????????????? ###### #?? | | ????????????????? ####+##+####### #?? | | ?????????????????? ????# ] ########?? | | ??????????????????????????+ """ #????????? | | ??????????????????????????# """ ##???????? | | ??????????????????????????# """ #???????? | | ??????????????????????????# ""T"" !% ##???????? | | ??????????????????????????# """"" *% #????????? | | ??????????????????????????##########""###????????? | | | | | | | | | | | | | +----------------------------------------------------+ Best States ------------- Heat Dissipation 28 Energy Generation 14 Energy Capacity 250 Matter Stores 300 Matter Capacity 500 Sight Range 16 Robot Scan Range 14 Terrain Scan Density 10 Evasion (%) 55 Targeting Accuracy 11 Recoil Reduction 2 Item Schematics ----------------- None Robot Schematics ------------------ None Fabricated ------------ Nothing Alien Tech Used ----------------- None Achievements -------------- None Challenges ------------ None Game ------ Seed ArchitectPlatingDatajack Manual? 0 Play Time 00:39:21 Cumulative 7.2 hours Start 2024.04.04 @ 07:36:19 End 2024.07.14 @ 22:55:16 Sessions 12 Manual Loads 0 Difficulty Rogue Special Mode None Game No. 13 Rogue 13 Adventurer 0 Explorer 0 Win Type - Total 0 Types 0/0/0/0/0/0/0/0/0 Lore% 2 Gallery% 8 Achievement% 9 Wizard Run 0 Options --------- Layout 1 ASCII 0 Keyboard 1 Movement Vi Keybinds 0 Fullscreen 2 Font 28/SmallcapsGlow Map View 50x43 Zoom Use 0% Tactical HUD 1 Map Filters NONE Filters NONE Steam 1 RUN: 51b50049-a43f-4038-a0a6-42e89af80f69